bitfinex/quotes_SOLUSD_20240829
["timestamp","ask_amount","ask_price","bid_price","bid_amount"]
[1724961853004,41.24036734,141.3,141.23,17.7009]
[1724961853005,34.16326734,141.3,141.24,7.0801]
[1724961853198,7.078,141.29,141.24,7.0801]
[1724961853901,41.24166734,141.28,141.23,24.7814]
[1724961854314,41.24136734,141.28,141.24,7.08]
[1724961856318,41.24136734,141.28,141.23,24.7814]
[1724961857015,34.16326734,141.3,141.24,7.0797]
[1724961857203,34.16326734,141.3,141.25,17.6981]
[1724961857517,13.2029,141.31,141.26,7.0787]
[1724961858102,7.0771,141.3,141.26,7.0787]
[1724961860508,7.0767,141.31,141.26,7.0787]
[1724961861019,34.16326734,141.32,141.25,34.1073]
[1724961861020,15.3582,141.33,141.27,19.09080676]
[1724961861399,41.23846734,141.34,141.29,7.0776]
[1724961861902,41.23846734,141.34,141.3,7.077]
[1724961862299,6.6249,141.36,141.27,17.696]
[1724961862300,34.16326734,141.32,141.27,17.696]
[1724961862510,41.23946734,141.32,141.27,24.7742]
[1724961862813,34.16326734,141.32,141.29,7.0775]
[1724961863629,41.23836734,141.34,141.29,7.0775]
[1724961864006,13.49663293,141.33,141.29,7.0775]
[1724961864207,20.57233293,141.33,141.29,7.0775]
[1724961864512,7.075,141.35,141.3,7.0771]
[1724961864821,7.075,141.35,141.25,16.4092]
[1724961864822,29.56073293,141.37,141.32,7.0761]
[1724961865022,7.0732,141.38,141.33,7.0755]
[1724961865223,7.0727,141.39,141.34,7.0749]
[1724961865403,7.0727,141.39,141.35,7.0744]
[1724961865404,13.49663293,141.39,141.35,7.0744]
[1724961866134,21.613,141.4,141.35,7.0744]
[1724961866135,55.32521374,141.4,141.35,7.0744]
[1724961866302,7.0726,141.39,141.34,7.0751]
[1724961868001,3.27103541,141.44,141.35,17.6857]
[1724961868215,33.71221374,141.43,141.35,17.6857]
[1724961868524,7.0712,141.42,141.35,17.6857]
[1724961868732,7.0712,141.42,141.36,1.4125631]
[1724961869428,7.0722,141.4,141.35,24.7602]
[1724961870517,7.0728,141.39,141.35,17.6857]
[1724961870723,7.0731,141.38,141.34,7.075]
[1724961871102,40.78581374,141.37,141.32,17.6898]
[1724961871533,40.78581374,141.37,141.32,24.7655]
[1724961872009,40.78581374,141.37,141.33,7.0755]
[1724961872210,40.78581374,141.37,141.32,17.6898]
[1724961872410,33.71221374,141.37,141.33,7.0756]
[1724961872832,40.78581374,141.37,141.33,7.0756]
[1724961873633,7.0731,141.38,141.33,7.0756]
[1724961874229,40.78481374,141.39,141.34,7.0747]
[1724961874431,15.3481,141.4,141.37,7.0735]
[1724961874727,7.0712,141.42,141.38,7.073]
[1724961875117,7.0706,141.43,141.38,7.073]
[1724961877238,7.0711,141.42,141.38,7.073]
[1724961877623,7.0717,141.41,141.37,7.0734]
[1724961878737,1.23249578,141.49,141.39,17.681]
[1724961878920,33.71221374,141.48,141.39,17.681]
[1724961879429,33.71221374,141.48,141.41,7.0712]
[1724961879630,7.0691,141.46,141.41,7.0712]
[1724961879830,40.78041374,141.48,141.41,17.6782]
[1724961880130,33.71221374,141.48,141.43,7.0706]
[1724961880925,7.0687,141.47,141.42,7.071]
[1724961881141,40.78041374,141.48,141.43,7.0704]
[1724961881328,7.0686,141.47,141.43,7.0704]
[1724961881637,7.0686,141.47,141.42,7.0709]
[1724961882513,40.78041374,141.48,141.44,7.0699]
[1724961882715,7.0681,141.48,141.43,24.7464]
[1724961883135,7.0681,141.48,141.43,17.6759]
[1724961883648,7.0681,141.48,141.43,24.7461]
[1724961883828,7.0686,141.47,141.43,24.7461]
[1724961884026,22.1591,141.53,141.46,17.6722]
[1724961884429,33.71221374,141.52,141.46,17.6722]
[1724961884826,33.71221374,141.52,141.44,15.2479]
[1724961885117,7.0677,141.49,141.43,7.0706]
[1724961885314,33.71221374,141.48,141.42,30.9705]
[1724961885825,33.71221374,141.48,141.43,7.0706]
[1724961886635,7.068,141.49,141.43,7.0706]
[1724961887344,7.0682,141.48,141.42,23.8994]
[1724961887526,7.0687,141.47,141.42,17.6767]
[1724961887732,7.0687,141.47,141.42,24.7478]
[1724961888126,40.78031374,141.48,141.42,24.7478]
[1724961888447,33.71221374,141.48,141.4,22.3195]
[1724961888626,33.71221374,141.46,141.4,22.3195]
[1724961889028,40.78141374,141.46,141.4,22.3195]
[1724961889231,7.0698,141.45,141.4,15.2479]
[1724961889430,7.0698,141.45,141.39,7.0726]
[1724961889638,7.0701,141.44,141.39,7.0726]
[1724961889938,40.78181374,141.46,141.39,7.0726]
[1724961890142,7.0698,141.45,141.39,7.0726]
[1724961893247,33.71221374,141.44,141.38,17.6817]
[1724961894346,7.0713,141.42,141.38,17.6817]
[1724961895446,7.0713,141.42,141.37,7.0735]
[1724961895447,7.0716,141.41,141.37,7.0735]
[1724961897664,7.0721,141.4,141.36,15.1436]
[1724961897851,7.0721,141.4,141.34,13.5698]
[1724961897852,7.0727,141.39,141.34,13.5698]
[1724961898461,7.0732,141.38,141.33,7.0755]
[1724961899158,40.78541374,141.38,141.34,7.075]
[1724961899850,40.78541374,141.38,141.32,39.9241]
[1724961900049,7.0741,141.36,141.32,17.6898]
[1724961901159,7.0737,141.37,141.32,17.6898]
[1724961901342,7.0732,141.38,141.33,7.0755]
[1724961901756,7.0737,141.37,141.33,7.0755]
[1724961902056,49.32311374,141.4,141.34,17.6873]
[1724961902256,33.71221374,141.4,141.34,17.6873]
[1724961902640,7.0731,141.38,141.34,17.6873]
[1724961902838,33.71221374,141.35,141.23,19.05369184]
[1724961903169,33.71221374,141.35,141.25,17.6987]
[1724961903170,7.078,141.29,141.25,17.6987]
[1724961903458,7.0777,141.29,141.25,24.7783]
[1724961903650,40.78991374,141.29,141.25,17.6987]
[1724961903863,40.78991374,141.29,141.25,24.7782]
[1724961904366,33.71221374,141.29,141.26,7.0789]
[1724961904542,40.78891374,141.31,141.26,7.0789]
[1724961905558,33.71221374,141.33,141.25,17.6987]
[1724961905767,16.0606,141.37,141.25,33.71221374]
[1724961905978,23.38558192,141.41,141.27,33.71221374]
[1724961906147,7.0736,141.37,141.33,17.6883]
[1724961906346,33.71221374,141.4,141.33,17.6883]
[1724961906347,7.0731,141.38,141.33,17.6883]
[1724961906661,33.71221374,141.4,141.34,7.0748]
[1724961906863,29.2243,141.41,141.33,17.6883]
[1724961907159,7.0723,141.4,141.35,7.0746]
[1724961907662,7.0728,141.39,141.34,7.075]
[1724961908353,7.0721,141.4,141.35,7.0746]
[1724961910770,7.0716,141.41,141.35,7.0746]
[1724961911147,7.0716,141.41,141.36,7.074]
[1724961911467,7.0716,141.41,141.33,23.7946]
[1724961911675,7.0716,141.41,141.35,7.0746]
[1724961912652,7.0721,141.4,141.35,7.0746]
[1724961912868,33.71221374,141.42,141.37,7.0736]
[1724961913071,7.0711,141.43,141.37,7.0736]
[1724961914160,7.0711,141.43,141.38,7.0729]
[1724961914360,56.65211374,141.44,141.39,7.0726]
[1724961914970,49.58201374,141.44,141.37,17.6828]
[1724961915174,7.0706,141.43,141.38,7.0731]
[1724961915783,7.0711,141.42,141.37,24.7563]
[1724961916162,3.38220001,141.47,141.39,17.6808]
[1724961916163,33.71221374,141.47,141.39,17.6808]
[1724961916460,7.0695,141.46,141.41,7.0714]
[1724961916877,15.0566,141.48,141.41,17.6783]
[1724961917183,48.76881374,141.48,141.44,7.0701]
[1724961917686,55.83701374,141.48,141.43,7.0705]
[1724961918186,7.0682,141.48,141.44,7.07]
[1724961918382,7.0677,141.49,141.43,17.6758]
[1724961918756,7.0677,141.49,141.44,7.07]
[1724961919286,33.71221374,141.5,141.43,24.7463]
[1724961919287,7.0682,141.48,141.43,24.7463]
[1724961919984,7.0682,141.48,141.44,7.07]
[1724961920763,7.0682,141.48,141.43,24.7463]
[1724961921185,7.0676,141.49,141.44,7.0698]
[1724961921781,7.0676,141.49,141.45,7.0695]
[1724961922564,7.0671,141.51,141.45,17.6733]
[1724961922768,15.0566,141.52,141.45,17.6733]
[1724961923281,22.1228,141.52,141.48,7.0681]
[1724961924563,7.0666,141.51,141.47,7.0685]
[1724961925774,7.0666,141.51,141.46,7.069]
[1724961927577,7.0666,141.51,141.47,7.0685]
[1724961927785,7.0666,141.51,141.46,7.0689]
[1724961929681,15.0566,141.52,141.47,7.0685]
[1724961929886,22.1227,141.52,141.47,24.739]
[1724961930187,7.0667,141.51,141.47,17.6706]
[1724961930401,7.0667,141.51,141.47,24.7391]
[1724961931196,22.1228,141.52,141.47,24.7391]
[1724961931489,33.71221374,141.57,141.51,7.0666]
[1724961931999,7.0645,141.56,141.51,7.0666]
[1724961932489,7.0645,141.56,141.52,7.066]
[1724961932679,7.0636,141.57,141.52,7.066]
[1724961934387,7.0643,141.56,141.51,24.7325]
[1724961935990,7.0646,141.55,141.51,24.7325]
[1724961936891,7.0646,141.55,141.51,17.6661]
[1724961937691,7.0646,141.55,141.51,24.7327]
[1724961938182,7.0641,141.57,141.51,17.6661]
[1724961938388,7.0641,141.57,141.52,7.0658]
[1724961939190,7.0641,141.57,141.52,7.70811221]
[1724961939582,7.0642,141.56,141.52,7.70811221]
[1724961939780,7.0642,141.56,141.52,7.0658]
[1724961941604,7.0642,141.56,141.51,17.6661]
[1724961941605,7.0647,141.55,141.51,24.7325]
[1724961943203,7.0647,141.55,141.51,17.6661]
[1724961943397,33.71221374,141.57,141.51,17.6661]
[1724961943799,7.0648,141.55,141.51,24.7326]
[1724961944104,7.0648,141.55,141.46,22.837]
[1724961944105,33.71221374,141.55,141.46,22.837]
[1724961944298,7.0657,141.53,141.46,22.837]
[1724961944483,7.0657,141.53,141.49,7.0675]
[1724961945493,7.0652,141.54,141.49,7.0675]
[1724961945689,7.0652,141.54,141.5,7.0669]
[1724961946083,7.0642,141.56,141.5,17.6672]
[1724961946285,7.0647,141.55,141.51,7.0664]
[1724961946477,7.0651,141.54,141.5,24.7342]
[1724961946681,7.0664,141.52,141.47,24.7389]
[1724961946893,7.0669,141.51,141.47,17.6707]
[1724961947583,39.78751374,141.55,141.48,7.0681]
[1724961948093,33.71221374,141.55,141.49,7.0675]
[1724961948293,7.0655,141.54,141.49,7.0675]
[1724961950610,33.71221374,141.53,141.47,24.7392]
[1724961951518,7.0669,141.51,141.47,17.6707]
[1724961953011,7.0669,141.51,141.47,24.7392]
[1724961954310,7.0661,141.52,141.48,7.0681]
[1724961955103,33.71221374,141.53,141.47,17.6707]
[1724961956411,40.77991374,141.49,141.45,7.0695]
[1724961956917,7.0678,141.49,141.44,24.7447]
[1724961957924,7.0671,141.5,141.45,7.0694]
[1724961958103,51.37661374,141.53,141.46,7.069]
[1724961958307,7.067,141.51,141.46,7.069]
[1724961959013,7.0671,141.5,141.46,7.069]
[1724961959198,7.0667,141.51,141.46,7.069]
[1724961960724,7.0673,141.5,141.46,7.069]
[1724961961047,7.0673,141.5,141.45,7.0695]
[1724961961400,7.068,141.49,141.44,24.7444]
[1724961961918,7.0682,141.48,141.44,24.7447]
[1724961962109,33.71221374,141.51,141.44,17.6747]
[1724961962417,7.0673,141.5,141.46,7.0687]
[1724961962605,40.77881374,141.51,141.47,7.0686]
[1724961963221,40.77881374,141.51,141.46,24.7413]
[1724961963823,7.0672,141.5,141.46,24.7413]
[1724961964199,7.0663,141.52,141.48,7.0681]
[1724961965406,6.2601,141.55,141.48,7.0681]
[1724961965407,39.97231374,141.55,141.48,17.6699]
[1724961965607,39.97231374,141.55,141.49,7.0675]
[1724961965608,7.0652,141.54,141.49,7.0675]
[1724961966125,33.71221374,141.53,141.48,17.6699]
[1724961966331,6.2601,141.55,141.48,17.6699]
[1724961966529,39.97231374,141.55,141.48,17.6699]
[1724961967019,40.77681374,141.55,141.5,7.0667]
[1724961967521,7.0652,141.54,141.5,7.0667]
[1724961967895,7.0652,141.54,141.48,17.6699]
[1724961967896,7.0652,141.54,141.49,7.0675]
[1724961968910,7.0652,141.54,141.48,17.6699]
[1724961968911,40.77791374,141.53,141.48,24.7379]
[1724961970122,40.77791374,141.53,141.49,7.0675]
[1724961970335,33.71221374,141.53,141.49,7.0675]
[1724961970505,33.71221374,141.53,141.5,7.0669]
[1724961971727,33.71221374,141.53,141.49,7.0675]
[1724961974425,33.71221374,141.53,141.5,7.0671]
[1724961976016,13.45899167,141.53,141.49,7.0674]
[1724961976222,20.52469167,141.53,141.49,7.0674]
[1724961977428,13.45899167,141.51,141.49,7.0674]
[1724961978524,13.45899167,141.51,141.47,7.0685]
[1724961978525,20.52559167,141.51,141.47,7.0685]
[1724961978705,13.45899167,141.49,141.46,7.0689]
[1724961979033,13.45899167,141.49,141.47,7.0685]
[1724961979523,13.45899167,141.52,141.49,7.0675]
[1724961980106,13.45899167,141.52,141.5,7.0669]
[1724961981034,7.0667,141.51,141.46,17.672]
[1724961981218,13.45899167,141.48,141.46,24.7407]
[1724961982310,17.6619,141.55,141.46,24.7407]
[1724961982311,7.0668,141.51,141.46,24.7407]
[1724961982517,15.4828,141.56,141.53,7.0656]
[1724961982713,28.94179167,141.56,141.52,17.6647]
[1724961983035,13.45899167,141.56,141.52,17.6647]
[1724961984113,40.69943984,141.57,141.52,17.6647]
[1724961984313,40.69943984,141.57,141.52,24.7307]
[1724961985737,33.63573984,141.55,141.52,17.6647]
[1724961987510,40.69943984,141.57,141.52,17.6647]
[1724961990940,7.0662,141.52,141.46,7.0686]
[1724961991141,7.0662,141.52,141.47,7.0683]
[1724961991318,7.0662,141.52,141.46,7.0689]
[1724961991510,40.70143984,141.53,141.47,7.0684]
[1724961993843,33.63573984,141.53,141.47,17.6704]
[1724961994017,15.0957,141.54,141.47,17.6704]
[1724961995138,33.63573984,141.55,141.47,17.6704]
[1724961995318,40.70033984,141.55,141.5,7.067]
[1724961996332,7.0646,141.55,141.5,7.067]
[1724961996514,16.0475,141.58,141.49,17.6682]
[1724961996721,16.0475,141.58,141.53,7.0655]
[1724961997612,23.1106,141.58,141.53,7.0655]
[1724962000343,7.0631,141.58,141.53,7.0655]
[1724962000722,49.40673984,141.61,141.51,1.41312189]
[1724962001043,7.0626,141.6,141.53,17.6632]
[1724962001624,56.46833984,141.61,141.53,19.07618309]
[1724962001822,15.771,141.61,141.57,7.0635]
[1724962002024,14.0585422,141.62,141.57,7.0635]
[1724962002025,7.9013422,141.62,141.57,7.0635]
[1724962003126,7.9013422,141.62,141.58,7.0631]
[1724962003743,0.8401422,141.62,141.58,7.0631]
[1724962005315,0.8401422,141.62,141.6,7.0618]
[1724962005516,0.8401422,141.62,141.61,13.3598]
[1724962005846,0.39297559,141.7,141.69,28.9259]
[1724962006151,0.39297559,141.7,141.69,30.33695595]
[1724962006326,0.39297559,141.7,141.69,29.17688]
[1724962006524,0.39297559,141.7,141.69,73.9259]
[1724962007232,0.39297559,141.7,141.69,28.9259]
[1724962007426,0.39297559,141.7,141.69,73.9259]
[1724962008653,0.39297559,141.7,141.69,7.0576]
[1724962009228,0.39297559,141.7,141.68,7.0579]
[1724962009948,0.39297559,141.7,141.69,7.0576]
[1724962010852,0.39297559,141.7,141.67,24.7041]
[1724962011148,0.39297559,141.7,141.68,7.0581]
[1724962012026,0.39297559,141.7,141.69,7.0576]
[1724962013631,0.39297559,141.7,141.68,7.0581]
[1724962013830,0.39297559,141.7,141.67,24.704]
[1724962014149,0.39297559,141.7,141.63,17.6504]
[1724962014150,33.63573984,141.69,141.63,17.6504]
[1724962014450,33.63573984,141.69,141.64,7.0599]
[1724962014651,40.69333984,141.69,141.64,7.0599]
[1724962015535,40.69333984,141.69,141.63,24.7109]
[1724962016132,7.0591,141.67,141.6,17.6551]
[1724962016328,7.0582,141.68,141.6,17.6551]
[1724962016639,33.63573984,141.69,141.64,7.0599]
[1724962016842,33.63573984,141.69,141.63,17.6513]
[1724962017142,7.0587,141.67,141.63,17.6513]
[1724962019346,7.0591,141.66,141.62,7.0607]
[1724962019546,7.0592,141.66,141.61,7.0616]
[1724962019930,7.0597,141.65,141.61,7.0616]
[1724962020329,7.0596,141.65,141.6,24.717]
[1724962020534,7.0596,141.65,141.57,6.4936]
[1724962020535,33.63573984,141.65,141.59,7.0624]
[1724962020954,7.061,141.63,141.58,7.0629]
[1724962021255,7.0602,141.64,141.57,17.6586]
[1724962021431,33.63573984,141.67,141.6,7.062]
[1724962021634,33.63573984,141.65,141.59,24.718]
[1724962022060,7.0605,141.64,141.59,24.718]
[1724962024349,33.63573984,141.65,141.59,17.6554]
[1724962025068,33.63573984,141.65,141.61,7.0615]
[1724962025360,33.63573984,141.67,141.61,7.0615]
[1724962026453,7.0597,141.65,141.61,7.0615]
[1724962027550,7.0597,141.65,141.6,7.062]
[1724962029664,7.0597,141.65,141.61,7.0615]
[1724962029869,22.4249,141.68,141.63,7.0606]
[1724962030251,7.0587,141.67,141.62,7.061]
[1724962030444,22.4249,141.68,141.61,24.7148]
[1724962030445,56.06063984,141.68,141.61,24.7148]
[1724962031366,7.0592,141.66,141.61,24.7148]
[1724962031873,7.0597,141.65,141.61,17.6532]
[1724962032258,7.0602,141.64,141.6,7.0621]
[1724962032464,7.0602,141.64,141.58,17.657]
[1724962032766,7.0602,141.64,141.6,7.0621]
[1724962033773,7.0597,141.65,141.61,7.0616]
[1724962033951,40.69493984,141.66,141.6,17.6546]
[1724962034672,7.0597,141.65,141.61,7.0615]
[1724962034969,40.69593984,141.64,141.6,24.7166]
[1724962035178,33.63573984,141.64,141.6,24.7166]
[1724962035645,40.69593984,141.64,141.6,24.7166]
[1724962036047,7.061,141.63,141.58,7.063]
[1724962036349,33.63573984,141.64,141.57,17.6583]
[1724962036350,7.0615,141.62,141.57,24.7218]
[1724962036761,7.0616,141.61,141.57,24.7218]
[1724962037853,7.0616,141.61,141.55,15.6712]
[1724962037854,7.0623,141.6,141.54,17.6622]
[1724962038153,7.063,141.59,141.55,7.0646]
[1724962038547,21.8581,141.62,141.55,1.41287048]
[1724962038873,7.0602,141.64,141.59,7.0622]
[1724962040569,15.2071,141.65,141.61,7.0613]
[1724962040950,7.0604,141.64,141.6,17.6544]
[1724962041150,7.0604,141.64,141.6,24.7164]
[1724962041351,55.90253984,141.65,141.6,17.6544]
[1724962042077,22.2668,141.65,141.6,17.6544]
[1724962042280,22.2668,141.65,141.61,7.0614]
[1724962042671,22.2668,141.65,141.6,24.7164]
[1724962043552,33.63573984,141.64,141.57,17.6588]
[1724962045274,40.69593984,141.64,141.59,7.0625]
[1724962046383,15.2071,141.65,141.6,17.6544]
[1724962046573,15.2071,141.65,141.58,36.72765716]
[1724962046574,16.5102,141.69,141.61,1.41212488]
[1724962047285,7.0586,141.67,141.63,7.0605]
[1724962047656,7.0587,141.67,141.63,7.0605]
[1724962047856,16.5102,141.69,141.63,7.0605]
[1724962048066,16.5102,141.69,141.64,7.06]
[1724962049082,23.5683,141.69,141.64,7.06]
[1724962049785,16.5102,141.69,141.64,7.06]
[1724962049961,7.0581,141.68,141.63,7.0606]
[1724962050391,7.0586,141.67,141.62,17.652]
[1724962050569,7.0594,141.66,141.62,17.652]
[1724962051469,7.0586,141.67,141.62,24.713]
[1724962052889,40.69393984,141.68,141.63,7.0605]
[1724962055679,7.0593,141.66,141.62,24.713]
[1724962056168,7.0587,141.67,141.62,24.713]
[1724962056677,33.63573984,141.68,141.62,24.713]
[1724962056678,7.0591,141.66,141.62,24.713]
[1724962057694,7.0597,141.65,141.61,7.0615]
[1724962059694,16.5102,141.69,141.56,24.7234]
[1724962059695,7.0622,141.6,141.56,24.7234]
[1724962059881,49.41923984,141.63,141.56,24.7234]
[1724962060202,7.0622,141.6,141.56,17.6594]
[1724962060404,33.63573984,141.61,141.56,17.6594]
[1724962060693,40.69763984,141.61,141.56,24.7233]
[1724962060871,7.0622,141.6,141.56,24.7233]
[1724962061286,7.0622,141.6,141.56,17.6594]
[1724962061594,7.0629,141.59,141.54,13.314]
[1724962061895,7.0629,141.59,141.54,7.065]
[1724962065883,7.0633,141.58,141.54,7.065]
[1724962066487,7.0637,141.57,141.53,17.6634]
[1724962067094,7.0646,141.56,141.51,7.0663]
[1724962067395,7.0637,141.57,141.53,7.0655]
[1724962067979,7.0637,141.57,141.52,24.7308]
[1724962068479,7.0642,141.56,141.52,24.7308]
[1724962071706,7.0642,141.56,141.52,24.7309]
[1724962074199,22.5352,141.58,141.5,7.0669]
[1724962074505,7.0643,141.56,141.51,7.0664]
[1724962074799,7.0643,141.56,141.52,7.0661]
[1724962075573,16.3731,141.58,141.52,1.41313039]
[1724962076014,6.1621,141.61,141.52,1.41313039]
[1724962076178,13.224,141.61,141.56,7.0638]
[1724962076485,7.0622,141.6,141.55,24.7256]
[1724962078487,7.0622,141.6,141.56,7.064]
[1724962082509,7.0622,141.6,141.55,24.7255]
[1724962082712,3.37764857,141.65,141.62,7.0609]
[1724962083022,15.6037,141.67,141.64,7.06]
[1724962083193,15.6037,141.67,141.63,24.7115]
[1724962083512,15.6037,141.67,141.64,7.0598]
[1724962085508,6.4871,141.68,141.6,1.41198766]
[1724962085712,6.4871,141.68,141.65,24.7075]
[1724962086292,16.45257559,141.7,141.65,24.7075]
[1724962086492,23.51007559,141.7,141.65,24.7075]
[1724962087310,7.0577,141.69,141.65,17.648]
[1724962087498,7.0582,141.68,141.64,7.06]
[1724962087701,7.0582,141.68,141.63,7.0605]
[1724962088632,7.0587,141.67,141.63,7.0605]
[1724962090723,23.51007559,141.7,141.65,7.0595]
[1724962090923,16.45257559,141.7,141.65,7.0595]
[1724962092009,7.058,141.69,141.64,24.7097]
[1724962092213,7.0582,141.68,141.64,24.7097]
[1724962095406,7.0577,141.69,141.64,24.7097]
[1724962097012,33.63573984,141.69,141.64,17.6497]
[1724962097207,33.63573984,141.65,141.61,24.7148]
[1724962097427,40.69573984,141.65,141.61,24.7149]
[1724962098008,33.63573984,141.65,141.61,24.7149]
[1724962099231,7.0602,141.64,141.6,7.0619]
[1724962101040,7.0607,141.63,141.58,17.657]
[1724962101219,7.0616,141.62,141.58,17.657]
[1724962102134,7.0616,141.62,141.58,24.72]
[1724962103128,40.69753984,141.61,141.55,17.6607]
[1724962103325,40.69753984,141.61,141.56,7.0637]
[1724962104932,40.69843984,141.59,141.55,17.6607]
[1724962105138,40.69843984,141.59,141.55,24.7251]
[1724962107631,33.63573984,141.59,141.52,17.6647]
[1724962108835,33.63573984,141.57,141.52,17.6647]
[1724962109344,40.69963984,141.57,141.53,7.0655]
[1724962109642,40.69963984,141.57,141.52,24.7307]
[1724962111193,40.69963984,141.57,141.53,7.0655]
[1724962111320,7.0639,141.57,141.53,7.0655]
[1724962113943,7.0633,141.58,141.53,7.0655]
[1724962114237,7.0633,141.58,141.54,7.065]
[1724962114630,7.0633,141.58,141.53,7.0655]
[1724962115918,7.0636,141.57,141.53,7.0655]
[1724962116240,40.69933984,141.57,141.52,24.7305]
[1724962116428,40.69933984,141.57,141.53,7.0656]
[1724962121429,33.63573984,141.57,141.49,17.6682]
[1724962122028,20.52024262,141.55,141.5,7.0667]
[1724962123550,13.45544262,141.55,141.49,17.6682]
[1724962125334,13.45544262,141.51,141.46,25.05143073]
[1724962125746,13.45544262,141.51,141.48,7.068]
[1724962126520,43.64374262,141.54,141.49,7.0674]
[1724962126846,43.64374262,141.54,141.5,7.067]
[1724962126847,36.57854262,141.54,141.5,7.067]
[1724962127347,43.64374262,141.54,141.49,7.0675]
[1724962129755,7.066,141.53,141.48,24.7376]
[1724962131655,7.0662,141.52,141.48,24.7376]
[1724962131836,7.0657,141.53,141.48,24.7376]
[1724962132641,7.0657,141.53,141.49,7.0673]
[1724962132845,30.1883,141.54,141.49,7.0673]
[1724962133852,16.5402,141.54,141.48,17.6696]
[1724962134057,6.6035,141.57,141.49,13.45544262]
[1724962134351,6.6035,141.57,141.47,41.719]
[1724962134352,70.05894262,141.57,141.46,7.37923073]
[1724962134534,70.05894262,141.57,141.46,20.83467335]
[1724962134535,13.45544262,141.55,141.46,20.83467335]
[1724962135250,7.0657,141.53,141.49,7.0675]
[1724962135433,7.0652,141.54,141.49,7.0675]
[1724962135637,20.52004262,141.55,141.48,17.6693]
[1724962135832,20.52004262,141.55,141.5,7.0667]
[1724962136145,7.0646,141.55,141.5,7.0667]
[1724962139531,7.0652,141.54,141.5,7.0667]
[1724962141059,7.0666,141.52,141.48,17.6693]
[1724962141237,36.88984262,141.53,141.48,24.737]
[1724962144244,23.4344,141.53,141.49,7.0672]
[1724962145566,7.0661,141.52,141.48,24.7373]
[1724962146062,13.45544262,141.51,141.48,24.7373]
[1724962146839,13.45544262,141.51,141.46,7.37923073]
[1724962147062,13.45544262,141.49,141.47,3.27552196]
[1724962147765,13.45544262,141.49,141.46,7.37923073]
[1724962148065,13.45544262,141.49,141.46,14.44833073]
[1724962148248,13.45544262,141.49,141.47,3.27231815]
[1724962148643,7.0672,141.5,141.47,3.27231815]
[1724962149277,7.0672,141.5,141.46,14.44833073]
[1724962149562,7.0672,141.5,141.47,3.27208943]
[1724962150162,26.86654262,141.51,141.46,20.05452397]
[1724962150362,16.3687,141.53,141.47,20.94194387]
[1724962150567,6.4977,141.54,141.53,7.0656]
[1724962150753,16.1197,141.56,141.53,7.0656]
[1724962151343,16.1197,141.56,141.5,13.45544262]
[1724962151344,16.1197,141.56,141.52,7.0659]
[1724962152373,16.1197,141.56,141.53,7.0656]
[1724962153554,6.4977,141.58,141.53,17.6635]
[1724962153750,6.4977,141.58,141.54,7.065]
[1724962155161,13.5608,141.58,141.54,7.065]
[1724962155562,13.45544262,141.56,141.51,5.5990451]
[1724962155762,13.45544262,141.56,141.5,24.7343]
[1724962155763,7.0646,141.55,141.5,24.7343]
[1724962156165,7.0646,141.55,141.51,7.0665]
[1724962156762,20.52074262,141.54,141.5,17.6673]
[1724962156954,20.52074262,141.54,141.49,7.0674]
[1724962156955,7.0657,141.53,141.49,7.0674]
[1724962158766,7.0652,141.54,141.49,7.0674]
[1724962159276,7.0652,141.54,141.5,7.0669]
[1724962159452,33.64130555,141.55,141.5,7.0669]
[1724962160257,7.0647,141.55,141.51,7.0664]
[1724962160578,7.0641,141.56,141.52,7.066]
[1724962161077,13.5611,141.58,141.53,17.6635]
[1724962162268,13.5611,141.58,141.54,7.0651]
[1724962166964,6.4977,141.58,141.54,7.0651]